Cogmind - Beta 15 @@@ ROGUE MODE // 2025.06.08 @ 00:12:29 Player: A Certain Magical Minus Result: Destroyed by G-34 Mercenary with Small Laser Performance ------------- Evolutions (1) 500 Regions Visited (3) 600 Robots Destroyed (16) 80 Value Destroyed (410) 410 Prototype IDs (2) 40 Alien Tech Used (0) 0 Bonus (0) 0 TOTAL SCORE: 1630 Bonus ------- None Cogmind --------- Core Integrity 0/400 Matter 184/300 Energy 72/100 System Corruption 0% Temperature Cool (30) Movement Core (200) Ox3 Location -9/Materials Parts ------- > --- POWER (1) -------- (None) > --- PROPULSION (2) --- (None) > --- UTILITY (4) ------ Medium Storage Unit Targeting Computer > --- WEAPON (2) ------- (None) > --- INVENTORY (10) --- Light Ion Engine Aluminum Leg Small Storage Unit Small Laser Datajack Peak State ------------ > --- POWER ------------ Light Ion Engine > --- PROPULSION ------- Compact Wheel Compact Wheel > --- UTILITY ---------- Medium Storage Unit Targeting Computer > --- WEAPON ----------- Particle Gun Assault Rifle > --- INVENTORY -------- Light Ion Engine Aluminum Leg Small Storage Unit Small Laser Assault Rifle [Rating: 8] Favorites ----------- Power Light Ion Engine Engine Light Ion Engine Propulsion Compact Wheel Leg Aluminum Leg Wheel Compact Wheel Utility Targeting Computer Storage Medium Storage Unit Processor Targeting Computer Weapon Particle Gun Energy Gun Particle Gun Ballistic Gun Assault Rifle Launcher Grenade Launcher Special Melee Weapon Datajack Build | -11 -10 -10 -9 ------- Run | Yrd Mat Min Mat Slots Evolved 2 | . . . 2 Power . | . . . . Propulsion . | . . . . Utility 2 | . . . 2 Weapon . | . . . . Parts Attached 17 | 6 7 1 3 Power 2 | 1 1 . . Engine 2 | 1 1 . . Core . | . . . . Reactor . | . . . . Propulsion 5 | 2 3 . . Treads . | . . . . Leg 3 | 2 1 . . Wheel 2 | . 2 . . Hover . | . . . . Flight . | . . . . Utility 3 | 1 2 . . Device . | . . . . Storage 2 | 1 1 . . Processor 1 | . 1 . . Hackware . | . . . . Protection . | . . . . Artifact . | . . . . Weapon 7 | 2 1 1 3 Energy Gun 2 | 1 1 . . Energy Cannon . | . . . . Ballistic Gun 3 | 1 . . 2 Ballistic Cannon . | . . . . Launcher 1 | . . . 1 Special Weapon . | . . . . Impact Weapon . | . . . . Slashing Weapon . | . . . . Piercing Weapon . | . . . . Special Melee Weapon 1 | . . 1 . Unidentified Prototypes . | . . . . Parts Lost 11 | . 3 . 8 Power 2 | . 1 . 1 Propulsion 4 | . 2 . 2 Utility . | . . . . Weapon 5 | . . . 5 Highest Loss Streak 8 | . 3 . 8 To Critical Strikes . | . . . . Average Backups 4 | 1 3 6 7 Power . | . 1 1 1 Propulsion . | . . 1 1 Utility . | . . 1 1 Weapon 2 | . 1 3 3 Tool/Special . | . . . . Unused Backups 1 | . . . 1 Power 1 | . . . 1 Propulsion . | . . . . Utility . | . . . . Weapon . | . . . . Tool/Special . | . . . . Average Slot Usage (%) 88 | . 86 100 71 Engine 9 | . 8 14 8 Leg 9 | . 16 . . Wheel 14 | . 6 28 18 Storage 13 | . 14 14 11 Processor 12 | . 12 14 11 Energy Gun 12 | . 13 14 6 Ballistic Gun 8 | . 14 1 5 Launcher 1 | . . . 6 Special Melee Weapon 4 | . . 12 3 Peak Build Rating 8 | 6 8 8 8 Average Rating 6 | 4 6 7 7 On Entrance 5 | . 6 8 8 Naked Turns . | . . . . Heaviest Build 19 | 11 18 18 19 Greatest Support 32 | 20 32 32 32 Greatest Overweight (x) 4 | . 2 . 4 Average Overweight (x) . | . . . . Largest Inventory Capacity 10 | 8 10 10 10 Average Capacity 9 | 7 9 10 10 Most Carried 8 | 3 7 8 8 Average Carried 4 | 1 3 6 7 Final Capacity 10 | 8 10 10 10 Final Carried 7 | 2 6 7 5 Class Distribution -------------------- 100% | Mutant Dominant Class ---------------- Mutant | -10/Materials Mutant | -10/Mines Mutant | -9/Materials Resources | -11 -10 -10 -9 ----------- Run | Yrd Mat Min Mat Matter Collected 426 | 214 174 . 38 Remotely . | . . . . Salvage Created 553 | . 307 . 246 Parts 29 | . 19 . 10 Haulers Intercepted 1 | . . . 1 Recyclers Shooed . | . . . . Parts Field Recycled . | . . . . Retrieved Matter . | . . . . Parts Self-Destructed . | . . . . Prevented . | . . . . Kills | -11 -10 -10 -9 ------- Run | Yrd Mat Min Mat Combat Hostiles Destroyed 11 | . 6 . 5 Guns 10 | . 6 . 4 AOE 1 | . . . 1 Classes Destroyed 8 | . 5 . 3 Worker 1 | . 1 . . Hauler 1 | . . . 1 Recycler 1 | . 1 . . Watcher 2 | . 2 . . Swarmer 3 | . 3 . . Grunt 5 | . 3 . 2 Brawler 1 | . . . 1 Sentry 2 | . . . 2 Best Kill Streak 4 | . 4 . 4 Combat Bots Only 2 | . 2 . 2 Max Kills in Single Turn 2 | . 2 . 1 Gunslinging 1 | . 1 . . Exploded 1 | . . . 1 Melee . | . . . . Uniques/NPCs Destroyed . | . . . . Combat | -11 -10 -10 -9 -------- Run | Yrd Mat Min Mat Hostile Shots Fired 149 | . 52 . 97 Missed 44 | . 15 . 29 Hits 105 | . 37 . 68 Projectile 105 | . 37 . 68 Critical Strikes 1 | . . . 1 Damage Taken 1403 | . 458 . 945 Core 505 | . 100 . 405 Absorbed by Shields . | . . . . Core Remaining (%) 80 | 100 . 60 . Volleys Fired 37 | . 21 . 16 Largest 2 | . 2 . 2 Hottest 95 | . 85 . 95 Shots Fired 71 | . 42 . 29 Gun 60 | . 42 . 18 Cannon . | . . . . Launcher 11 | . . . 11 Special . | . . . . Kinetic 29 | . 21 . 8 Thermal 31 | . 21 . 10 Explosive 11 | . . . 11 Electromagnetic . | . . . . Robot Hit Streak 8 | . 7 . 8 Robot Miss Streak 3 | . 3 . 1 Penetration Max . | . . . . Secondary Targets 1 | . 1 . . Max Gunslinging Chain 1 | . 1 . . Shots Hit Robots 51 | . 29 1 21 Core Hits 32 | . 17 . 15 Critical Kills . | . . . . Critical Parts Destroyed . | . . . . Critical Strikes 1 | . . . 1 Burn 1 | . . . 1 Melee Attacks 1 | . . 1 . Impact . | . . . . Slashing . | . . . . Piercing . | . . . . Sneak Attacks 1 | . . 1 . Combat Hostiles . | . . . . Follow-up Attacks . | . . . . Damage Inflicted 902 | . 408 . 494 Guns 569 | . 351 . 218 Cannons . | . . . . Explosions 333 | . 57 . 276 Melee . | . . . . Ramming . | . . . . Kinetic 315 | . 224 . 91 Thermal 291 | . 164 . 127 Explosive 296 | . 20 . 276 Electromagnetic . | . . . . Impact . | . . . . Slashing . | . . . . Piercing . | . . . . Highest Corruption . | . . . . Average Corruption . | . . . . Corruption Purged . | . . . . Corruption Blocked . | . . . . Overload Shots . | . . . . Overflow Damage 29 | . 20 . 9 Projectiles . | . . . . Explosions 29 | . 20 . 9 Melee . | . . . . Knockbacks . | . . . . Impact . | . . . . Kinetic . | . . . . Secondary . | . . . . Self-Inflicted Damage 157 | . 77 . 80 Shots 4 | . 1 . 3 Rammed . | . . . . Targets Rammed . | . . . . Kicked . | . . . . Crushed . | . . . . Highest Temperature 123 | . 39 . 123 Average Temperature 32 | . 17 . 49 Received Heat Transfer 441 | . 129 . 312 Siege Activations . | . . . . Martial Activations . | . . . . Shielding Activations . | . . . . Robots Disrupted . | . . . . Combat Hostiles . | . . . . Robots Corrupted . | . . . . Combat Hostiles . | . . . . Parts Fried . | . . . . Impact Corruptions . | . . . . Robots Melted . | . . . . Combat Hostiles . | . . . . Parts Melted . | . . . . Heat Transferred 707 | . 337 . 370 Parts Sabotaged . | . . . . Parts Stolen . | . . . . Parts Stripped . | . . . . Power Chain Reactions . | . . . . Alert | -11 -10 -10 -9 ------- Run | Yrd Mat Min Mat Maximum Alert Level . | . . . . Low Security (%) 100 | 100 100 100 100 Level 1 . | . . . . Level 2 . | . . . . Level 3 . | . . . . Level 4 . | . . . . Level 5 . | . . . . High Security . | . . . . Max Security . | . . . . Peak Influence 146 | . 146 16 114 Initial 16 | . . 16 . Average 37 | . 60 1 48 Influence Increases 412 | . 218 . 194 Destroy 0b10 Robot/C 220 | . 120 . 100 Destroy 0b10 Robot/NC 25 | . 20 . 5 Destroy Leader 56 | . 24 . 32 Disable Machine 45 | . 45 . . Destroy Structure 66 | . 9 . 57 Influence Decreases 348 | . 174 44 130 Entered New Map 28 | . . 28 . Time Decay 210 | . 144 16 50 Lost Part 110 | . 30 . 80 Squads Dispatched . | . . . . Investigation . | . . . . Extermination . | . . . . Reinforcement . | . . . . Assault . | . . . . Garrison . | . . . . Intercept . | . . . . Searches Triggered . | . . . . Construction Impeded . | . . . . Haulers Reinforced . | . . . . Active Scanning Responses . | . . . . Cargo Convoy Interrupts . | . . . . Stealth | -11 -10 -10 -9 --------- Run | Yrd Mat Min Mat Distress Signals 3 | . 1 . 2 Communications Jammed . | . . . . Distress Signals . | . . . . Times Spotted 25 | . 10 2 13 Peak Tracking Total 11 | . 5 2 11 Tactical Retreats . | . . . . Traps | -11 -10 -10 -9 ------- Run | Yrd Mat Min Mat Traps Triggered . | . . . . Indirectly . | . . . . Trap Hack Attempts . | . . . . Triggered . | . . . . Disarmed . | . . . . Reprogrammed . | . . . . Reused . | . . . . Traps Extracted . | . . . . Installed . | . . . . Triggered . | . . . . Machines | -11 -10 -10 -9 ---------- Run | Yrd Mat Min Mat Machines Disabled 3 | . 3 . . Max in Single Turn 3 | . 3 . . Machines Repaired . | . . . . Machines Dismantled . | . . . . Machines Sabotaged . | . . . . Overloaded Fab Kills . | . . . . Hacking | -11 -10 -10 -9 --------- Run | Yrd Mat Min Mat Machines Accessed 3 | . 1 . 2 Terminals 2 | . . . 2 Fabricators . | . . . . Repair Stations . | . . . . Recycling Units 1 | . 1 . . Scanalyzers . | . . . . Garrison Access . | . . . . Total Hacks 5 | . 3 . 2 Successful 4 | . 2 . 2 Failed 1 | . 1 . . Catastrophic . | . . . . Database Lockouts . | . . . . Manual . | . . . . Terminals 2 | . . . 2 Fabricators . | . . . . Repair Stations . | . . . . Recycling Units 3 | . 3 . . Scanalyzers . | . . . . Garrison Access . | . . . . Terminal Hacks 2 | . . . 2 Record 1 | . . . 1 Prototype ID Bank 1 | . . . 1 Fabricator Hacks . | . . . . Repair Station Hacks . | . . . . Recycling Unit Hacks 2 | . 2 . . Recycle Component 1 | . 1 . . Process 1 | . 1 . . Scanalyzer . | . . . . Garrison Access Hacks . | . . . . Unauthorized Hacks . | . . . . Terminals . | . . . . Fabricators . | . . . . Repair Stations . | . . . . Recycling Units . | . . . . Scanalyzers . | . . . . Garrison Access . | . . . . Data Cores Recovered . | . . . . Used . | . . . . Hacking Detections 2 | . 1 . 1 Full Trace Events . | . . . . Feedback Events . | . . . . Feedback Blocked . | . . . . Robot Schematics Acquired . | . . . . Robots Built . | . . . . Authchips . | . . . . Time . | . . . . Total Robot Build Rating . | . . . . Part Schematics Acquired . | . . . . Parts Built . | . . . . Authchips . | . . . . Time . | . . . . Total Part Build Rating . | . . . . Parts Repaired . | . . . . Time . | . . . . Parts Recycled 1 | . 1 . . Recycled Matter 69 | . 69 . . Retrieved Matter . | . . . . Retrieved Components . | . . . . Parts Scanalyzed . | . . . . Part Schematics Acquired . | . . . . Parts Damaged . | . . . . Bothacking | -11 -10 -10 -9 ------------ Run | Yrd Mat Min Mat Used RIF Installer . | . . . . Robots Hacked 1 | . . 1 . Non-combat 1 | . . 1 . Combat . | . . . . Robot Hacks Applied 1 | . . 1 . parse_system 1 | . . 1 . Relay Couplers Released . | . . . . Fabnet Peak Effective % . | . . . . Robots Rewired . | . . . . Allies Hacked . | . . . . Hacks Repelled . | . . . . Allies | -11 -10 -10 -9 -------- Run | Yrd Mat Min Mat Total Allies . | . . . . Largest Group . | . . . . Highest-Rated Group . | . . . . Highest-Rated Ally . | . . . . Total Orders . | . . . . Ally Attacks . | . . . . Total Damage . | . . . . Kills . | . . . . Allies Corrupted . | . . . . Allies Melted . | . . . . Intel | -11 -10 -10 -9 ------- Run | Yrd Mat Min Mat Active Infowar (turns) . | . . . . Robot Analysis Total . | . . . . Derelict Logs Recovered 1 | . . 1 . Drone Launches . | . . . . Drone Recoveries . | . . . . Exploration | -11 -10 -10 -9 ------------- Run | Yrd Mat Min Mat Turns Passed 878 | 63 449 243 123 Spaces Moved 634 | 46 281 240 67 Core 11 | 8 1 . 2 Treads . | . . . . Legs 230 | 38 192 . . Wheels 393 | . 88 240 65 Hover . | . . . . Flight . | . . . . Fastest Speed 50 | 50 100 100 100 Average Speed 114 | 107 131 100 103 Slowest Speed 250 | 120 190 100 250 Overloaded Moves . | . . . . Propulsion Burnouts . | . . . . Robots Hopped . | . . . . Potential Cave-ins . | . . . . Cave-ins Triggered . | . . . . Exploration Rate (%) 28 | 4 37 60 14 Regions Visited 3 Branch Regions 1 Pre-discovered Areas . | . . . . Known Exits Taken . | . . . . Unknown Exits Taken 3 | 1 1 1 . Scrap Searched . | . . . . Spaces Dug . | . . . . Terrain Destroyed 66 | . 9 . 57 Melee . | . . . . Projectile . | . . . . AOE 66 | . 9 . 57 Terrain Rammed . | . . . . Walls Destroyed . | . . . . Machines Disabled . | . . . . Actions | -11 -10 -10 -9 --------- Run | Yrd Mat Min Mat Total 712 | 59 320 243 90 Wait 1 | . . . 1 Move 631 | 45 280 239 67 Hop . | . . . . Pick Up 19 | 8 9 1 1 Fast Attach . | . . . . Attach 17 | 6 7 1 3 Detach 4 | . 3 1 . Swap 2 | . . . 2 Drop . | . . . . Fire 37 | . 21 . 16 Melee 1 | . . 1 . Ram . | . . . . Kick . | . . . . Crush . | . . . . Escape Stasis . | . . . . Rewire . | . . . . Trap . | . . . . Miscellaneous . | . . . . Route ------- -11/Scrapyard -10/Materials -10/Mines -9/Materials (discovered 2 exits: Mat / [*Min]) History --------- Turn | Location | Event 3 | -11/Scrapyard | Discovered new exit (range 16) 64 | -11/Scrapyard | Entered Materials 284 | -10/Materials | Discovered new exit (range 16) 299 | -10/Materials | Lost 3 parts (1p2n) 311 | -10/Materials | Build established: Mutant 513 | -10/Materials | Entered Mines 522 | -10/Mines | YI-UF0 nonchalantly dropped a Grenade Launcher on the ground 608 | -10/Mines | Learned 2 Materials zone layouts 745 | -10/Mines | Discovered new exit (range 9) 756 | -10/Mines | Entered Materials 756 | -9/Materials | Evolved 2 slots: Utility x2 757 | -9/Materials | Identified exit to Materials 860 | -9/Materials | Discovered new exit (range 15) 865 | -9/Materials | Core integrity fell below 50% 874 | -9/Materials | Core integrity fell below 20% 879 | -9/Materials | Destroyed by G-34 Mercenary with Small Laser Last Messages --------------- Com. Wheel destroyed. Destroyed Com. Wheel. R-06 Scavenger collects Rnf. Ion Engine. R-06 Scavenger collects Lgt. Armor Plating. A-02 Transporter destroyed. EXIT=FOUND R-06 Scavenger collects Heat Sink. Com. Wheel destroyed. Grenade Launcher destroyed. W-16 Scout sends out distress signal. The unstable cave ceiling collapses. Hvy. Assault Rifle destroyed. G-34 Mercenary destroyed. R-06 Scavenger collects Lgt. Treads. The unstable cave ceiling collapses. Assault Rifle destroyed. Particle Gun destroyed. Critical hit (Burn: +37). Assault Rifle destroyed. The unstable cave ceiling collapses. Map ----- +----------------------------------------------------+ | ??????????????????????????????????????????????#### | | ?????????????????????????????????????????????????? | | ?????????????????????????????????????????????????? | | ?????????????????????????????????????????????????? | | ???????????????????????????????????????????####### | | ???????????????????????????????????????????# "" | | ?????????????????????????????????????##????# "T | | ?????????????????????????????????????? ???# | | ?????????????????????????????????????##+#### | | ???????????????????????????? ??????# | | ??????????????????????????? ??????# # [! | | ??????????????????????????? #?????# # [! | | ??????????????????????????##^s ##????# ! | | ????????????????????###??## #????# | | ???????????????????? ?? #????# ## ## | | ????????????????#???" ??# #????# # | | ????????????????# """ ?# ] #????# # """ | | ????????????????# """ ?# #????# # """ | | ????????????????# ?# #????###### """ | | ????????????????# !!! ?? % #?????????# | | ????????????????# !!! ## #########?##+##+## | | ?????????????!""# !!! # #??# | | ????????????"!" # #??# ## | | ?????????? # # # # % """" #### #? | | ?????????? Y Y # """" + #? | | ?????????? < Y @sr """" ##"T"####? | | ?????????? u ]g] g # ######???? | | ?????????? ####%= # #????????? | | ???????????###### [ ???#= ##########????????? | | ????????????????#!! ????# ????????????????? | | ????????????????#!! ????? ??????????????? | | ???????????????# !! ?????## ????????????? | | ???????????????## ??????##+####+###???????????? | | ????????????????# a ????????? ??????????????????? | | ????????????????# ?????????? ??????????????????? | | ????????????????# ???????????? ??????????????????? | | ????????????????# ???????????? "?????????????????? | | ????????????????#????????????? ?????????????????? | | ?????????????????????????????? ?????????????????? | | ??????????????????????????????? ?????????????????? | | ?????????????????????????????????????????????????? | | ?????????????????????????????????????????????????? | | ?????????????????????????????????????????????????? | | ?????????????????????????????????????????????????? | | ?????????????????????????????????????????????????? | | ?????????????????????????????????????????????????? | | ?????????????????????????????????????????????????? | | ?????????????????????????????????????????????????? | | ?????????????????????????????????????????????????? | | ?????????????????????????????????????????????????? | +----------------------------------------------------+ Best States ------------- Heat Dissipation 28 Energy Generation 10 Energy Capacity 125 Matter Stores 300 Matter Capacity 300 Sight Range 16 Terrain Scan Density 10 Evasion (%) 55 Targeting Accuracy 5 Item Schematics ----------------- None Robot Schematics ------------------ None Fabricated ------------ Nothing Repaired ---------- Nothing Alien Tech Used ----------------- None Achievements -------------- None Challenges ------------ None Game ------ Seed DynamicReinforcedNeutralizer Manual? 0 Play Time 00:13:43 Cumulative 1.6 hours Start 2025.06.07 @ 23:56:56 End 2025.06.08 @ 00:12:29 Sessions 1 Manual Loads 0 Difficulty Rogue Special Mode None Game No. 6 Rogue 6 Adventurer 0 Explorer 0 Win Type - Total 0 Types 0/0/0/0/0/0/0/0/0/0 Lore% 3 Gallery% 4 Achievement% 5 Wizard Run 0 Options --------- Layout 1 ASCII 0 Keyboard 0 Movement Mouse Keybinds 0 Fullscreen 1 Font 24/Smallcaps Map View 25x17 Zoom Use 99% Tactical HUD 0 Map Filters NONE Filters NONE Steam 1 RUN: a80356f3-cd60-4365-a257-7790b7dea497